Cogmind - Beta 13 @@@ ROGUE MODE // 2024.05.06 @ 14:10:11 Player: Chickoo Result: Destroyed by H-66 Slayer with Gauss Rifle Performance ------------- Evolutions (5) 2500 Regions Visited (14) 2800 Robots Destroyed (143) 715 Value Destroyed (4255) 4255 Prototype IDs (33) 660 Alien Tech Used (0) 0 Bonus (1707) 1707 TOTAL SCORE: 12637 Bonus ------- High Alert Combat Kills 167 Follower Combat Kills 40 Entered Garrisons 200 Used RIF Installer 1000 Aligned with FarCom 300 Cogmind --------- Core Integrity 0/1000 Matter 242/300 Energy 99/100 System Corruption 14% Temperature Cool (0) Movement Core (50) Location -5/Upper Caves Parts ------- > --- POWER (2) -------- (None) > --- PROPULSION (6) --- (None) > --- UTILITY (7) ------ Machine Analyzer Core Analyzer > --- WEAPON (2) ------- (None) > --- INVENTORY (5) ---- Light Fission Core Remote Datajack Molecular Deconstructor Peak State ------------ > --- POWER ------------ Reinforced Deuterium Engine > --- PROPULSION ------- Wheel Compact Wheel Compact Wheel Armored Huge Wheel > --- UTILITY ---------- Advanced Heat Sink Huge Storage Unit Machine Analyzer Hardened Heavy Armor Plating Medium Reactive Plating Force Field > --- WEAPON ----------- Heavy Particle Gun Heavy Machine Gun > --- INVENTORY -------- Light Deuterium Engine Micro Nuclear Core Cesium-ion Thruster Cesium-ion Thruster Cesium-ion Thruster Improved VTOL Module Improved VTOL Module Medium Storage Unit High-capacity Matter Pod ECM Suite Improved Propulsion Shielding Improved Utility Shielding Improved Light Armor Plating Improved Light Armor Plating Layered Medium Armor Plating System Shield Authchip [R/Combat] Relay Coupler [Grunt] Relay Coupler [Sentry] Relay Coupler [Hunter] Trap Reconfigurator Rocket Launcher Missile Launcher Datajack Axe [Rating: 58] Favorites ----------- Power Light Nuclear Core Engine Reinforced Deuterium Engine Power Core Light Nuclear Core Propulsion Wheel Wheel Wheel Hover Unit Antigrav System Flight Unit Improved VTOL Module Utility Huge Storage Unit Device Advanced Heat Sink Storage Huge Storage Unit Processor Machine Analyzer Hackware Hacking Suite Protection Hardened Medium Armor Plating Weapon Enhanced Autogun Energy Gun Heavy Particle Gun Energy Cannon Heavy Particle Cannon Ballistic Gun Enhanced Autogun Launcher Rocket Launcher Special Weapon Remote Datajack Slashing Weapon Axe Piercing Weapon Kinetic Spear Special Melee Weapon Datajack Build | -11 -10 -10 -10 -9 -8 -8 -8 -7 -6 -6 -6 -5 -5 -5 ------- Run | Yrd Mat Min Exi Min Mat Gar Mat Fac Fac Was Fac Fac Upp Upp Slots Evolved 10 | . . . . . 4 . . 2 2 . . 2 . . Power 1 | . . . . . . . . . . . . 1 . . Propulsion 4 | . . . . . 1 . . 1 1 . . 1 . . Utility 5 | . . . . . 3 . . 1 1 . . . . . Weapon . | . . . . . . . . . . . . . . . Parts Attached 197 | 6 1 13 1 3 34 27 18 24 9 13 20 21 6 1 Power 12 | 1 . 1 . . 2 . 2 2 . 1 . 3 . . Engine 6 | 1 . 1 . . 1 . 1 2 . . . . . . Core 6 | . . . . . 1 . 1 . . 1 . 3 . . Reactor . | . . . . . . . . . . . . . . . Propulsion 32 | 2 . 1 1 . 7 1 5 4 1 5 3 1 1 . Treads . | . . . . . . . . . . . . . . . Leg . | . . . . . . . . . . . . . . . Wheel 21 | 2 . 1 1 . 7 1 4 4 1 . . . . . Hover 1 | . . . . . . . . . . . . . 1 . Flight 10 | . . . . . . . 1 . . 5 3 1 . . Utility 69 | 1 1 3 . . 12 11 7 7 2 5 6 12 2 . Device 24 | . . . . . 1 5 3 3 1 . 3 6 2 . Storage 5 | 1 1 . . . 2 . . . . 1 . . . . Processor 7 | . . . . . 1 . 1 . 1 . 1 3 . . Hackware 3 | . . . . . 1 . . . . . 2 . . . Protection 30 | . . 3 . . 7 6 3 4 . 4 . 3 . . Artifact . | . . . . . . . . . . . . . . . Weapon 84 | 2 . 8 . 3 13 15 4 11 6 2 11 5 3 1 Energy Gun 8 | . . . . . 3 1 . 3 1 . . . . . Energy Cannon 2 | . . . . . 2 . . . . . . . . . Ballistic Gun 27 | 2 . 5 . 1 5 5 3 2 1 . 1 2 . . Ballistic Cannon . | . . . . . . . . . . . . . . . Launcher 21 | . . 3 . 2 1 5 1 4 2 1 . 1 . 1 Special Weapon 3 | . . . . . . . . . . . 2 . 1 . Impact Weapon . | . . . . . . . . . . . . . . . Slashing Weapon 19 | . . . . . 2 4 . 2 2 . 8 1 . . Piercing Weapon 3 | . . . . . . . . . . . . 1 2 . Special Melee Weapon 1 | . . . . . . . . . . 1 . . . . Unidentified Prototypes 8 | . . . . . 3 . 1 . . . . 3 1 . Parts Lost 45 | . . 3 . . 3 9 . 3 1 . 8 7 9 2 Power 2 | . . . . . . 1 . . . . 1 . . . Propulsion 16 | . . . . . 2 3 . 2 . . 4 3 2 . Utility 18 | . . 1 . . . 4 . . 1 . 3 3 5 1 Weapon 9 | . . 2 . . 1 1 . 1 . . . 1 2 1 Highest Loss Streak 8 | . . 2 . . 1 4 . 2 1 . 8 4 6 2 To Critical Strikes . | . . . . . . . . . . . . . . . Average Slot Usage (%) 82 | . 85 97 71 90 85 85 94 97 84 78 58 57 31 17 Engine 4 | . 14 14 14 14 3 . 1 7 6 . . . . . Core 3 | . . . . . 5 6 7 . . 6 2 2 . . Wheel 20 | . 28 28 28 28 23 23 22 29 26 . . . . . Flight 2 | . . . . . . . . . . 33 20 10 . . Device 7 | . . . . . . 7 13 13 12 1 3 12 2 . Storage 7 | . 14 14 14 14 9 9 9 7 6 7 6 4 . . Processor 5 | . . . . . 7 . 4 7 6 6 9 12 12 11 Hackware 2 | . . . . . 3 6 . . . . 4 5 5 4 Protection 12 | . . 13 14 14 15 15 17 15 12 16 4 . . . Energy Gun 2 | . . . . . 5 5 . 2 1 . . . . . Ballistic Gun 8 | . 28 24 . 9 9 6 17 8 5 . . 1 . . Launcher 1 | . . 2 . 9 . 2 . 1 2 . . . . . Slashing Weapon 1 | . . . . . . 3 . 1 3 1 4 2 . . Naked Turns . | . . . . . . . . . . . . . . . Heaviest Build 154 | 14 19 30 21 29 115 110 117 146 154 25 25 24 6 6 Greatest Support 70 | 26 26 26 26 26 36 36 36 52 70 25 26 16 6 3 Greatest Overweight (x) 10 | . . 1 . 1 5 9 10 3 2 . 1 3 1 1 Average Overweight (x) 1 | . . . . . 2 3 3 2 1 . . . . . Largest Inventory Capacity 25 | 8 10 10 10 10 25 25 25 25 25 25 10 10 5 5 Average Capacity 19 | 6 8 10 10 10 24 25 25 25 25 13 10 9 5 5 Most Carried 25 | 1 3 10 10 9 25 25 25 25 25 24 10 10 5 5 Average Carried 18 | . 1 7 9 9 20 24 22 24 24 10 8 8 4 4 Final Capacity 25 | 8 10 10 10 10 25 25 25 25 25 10 10 5 5 5 Final Carried 25 | 1 3 9 10 9 25 22 25 25 25 7 8 5 5 4 Class Distribution -------------------- 62% | Scavenger-Mutant 28% | Mutant Dominant Class ---------------- Mutant | -10/Materials Mutant | -10/Mines Mutant | -10/Exiles Mutant | -9/Mines Scavenger-Mutant | -8/Materials Scavenger-Mutant | -8/Garrison Scavenger-Mutant | -8/Materials Scavenger-Mutant | -7/Factory Scavenger-Mutant | -6/Factory Sprinter | -6/Waste Mutant | -6/Factory Infiltrator-Mutant | -5/Factory Mutant | -5/Upper Caves Mutant | -5/Upper Caves Resources | -11 -10 -10 -10 -9 -8 -8 -8 -7 -6 -6 -6 -5 -5 -5 ----------- Run | Yrd Mat Min Exi Min Mat Gar Mat Fac Fac Was Fac Fac Upp Upp Matter Collected 4118 | 223 88 310 121 18 816 515 539 546 310 . 219 327 86 . Remotely . | . . . . . . . . . . . . . . . Salvage Created 4746 | . 88 231 . 37 1357 487 462 1491 156 . 168 156 110 3 Parts 268 | . 4 16 . 5 72 23 30 81 9 . 12 7 8 1 Haulers Intercepted 10 | . 1 . . . 6 . 1 2 . . . . . . Recyclers Shooed 5 | . 1 . . . 3 . . . 1 . . . . . Parts Field Recycled . | . . . . . . . . . . . . . . . Retrieved Matter . | . . . . . . . . . . . . . . . Parts Self-Destructed 11 | . . . . . . . . . . . . . 11 . Prevented 1 | . . . . . . . . . . . . . . 1 Kills | -11 -10 -10 -10 -9 -8 -8 -8 -7 -6 -6 -6 -5 -5 -5 ------- Run | Yrd Mat Min Exi Min Mat Gar Mat Fac Fac Was Fac Fac Upp Upp Combat Hostiles Destroyed 78 | . 1 10 . 2 12 14 4 21 6 . 2 3 2 1 Melee 8 | . . . . . 3 . . . . . 2 1 2 . Guns 35 | . 1 6 . . 6 6 2 8 4 . . 2 . . Cannons 1 | . . . . . 1 . . . . . . . . . AOE 32 | . . 4 . 2 2 7 2 12 2 . . . . 1 Classes Destroyed 16 | . 2 2 . 1 7 2 2 . . . . . . . Worker 23 | . . . . 2 4 . 2 14 . . 1 . . . Builder 11 | . . 2 . . 2 . 1 5 . . . 1 . . Tunneler 2 | . . . . . . . 1 1 . . . . . . Hauler 10 | . 1 . . . 6 . 1 2 . . . . . . Recycler 11 | . . . . . 3 . 2 6 . . . . . . Mechanic 2 | . . . . . 1 . . 1 . . . . . . Operator 4 | . . . . . 1 . 1 1 . . 1 . . . Watcher 2 | . . . . . 2 . . . . . . . . . Swarmer 23 | . . 7 . 2 . 3 . 5 4 . . 1 . 1 Grunt 33 | . 1 3 . . 7 6 1 11 2 . . 2 . . Brawler 1 | . . . . . . . 1 . . . . . . . Duelist 1 | . . . . . 1 . . . . . . . . . Sentry 8 | . . . . . 3 2 2 1 . . . . . . Specialist 1 | . . . . . . 1 . . . . . . . . Hunter 5 | . . . . . 1 . . 2 . . 2 . . . Programmer 6 | . . . . . . 2 . 2 . . . . 2 . Best Kill Streak 14 | . 1 5 . 4 6 6 6 14 2 . 2 2 2 1 Combat Bots Only 6 | . 1 3 . 2 5 6 2 4 2 . 1 2 2 1 Max Kills in Single Turn 6 | . 1 2 . 3 2 4 1 6 1 . 1 1 1 1 Gunslinging . | . . . . . . . . . . . . . . . Exploded 4 | . . 2 . 2 2 4 1 2 1 . . . . 1 Melee 1 | . . . . . 1 . . . . . 1 1 1 . Uniques/NPCs Destroyed . | . . . . . . . . . . . . . . . Combat | -11 -10 -10 -10 -9 -8 -8 -8 -7 -6 -6 -6 -5 -5 -5 -------- Run | Yrd Mat Min Exi Min Mat Gar Mat Fac Fac Was Fac Fac Upp Upp Hostile Shots Fired 662 | . 3 74 . 4 55 91 8 145 72 . 64 30 98 18 Missed 181 | . . 19 . 2 10 18 3 41 21 . 11 12 37 7 Damage Taken 7546 | . 35 574 . 63 683 1488 69 1305 581 . 919 501 1145 183 Core 1942 | . . 72 . 6 90 236 . 146 85 . 306 208 686 107 Absorbed by Shields 220 | . . . . . . . . . 220 . . . . . Redirected to Shielding 218 | . . . . . . 110 9 . . . 99 . . . Ignored by Resistances 372 | . . 76 . . 78 18 . 80 120 . . . . . Core Remaining (%) 68 | 100 . . . 68 . . 40 79 . . 54 . . . Volleys Fired 303 | . 12 45 . 3 73 48 23 66 21 . 1 7 . 4 Largest 2 | . 2 2 . 2 2 2 2 2 2 . 1 2 . 1 Hottest 100 | . 40 50 . 69 100 80 50 86 85 . 5 56 . 36 Shots Fired 520 | . 24 62 . 6 138 72 43 129 29 . 1 12 . 4 Gun 442 | . 24 58 . . 118 50 40 117 23 . . 12 . . Cannon 19 | . . . . . 19 . . . . . . . . . Launcher 58 | . . 4 . 6 1 22 3 12 6 . . . . 4 Special 1 | . . . . . . . . . . . 1 . . . Kinetic 328 | . 24 58 . . 84 27 40 68 15 . . 12 . . Thermal 129 | . . . . . 49 23 . 49 8 . . . . . Explosive 50 | . . 4 . 3 1 17 3 12 6 . . . . 4 Electromagnetic 12 | . . . . 3 4 5 . . . . . . . . Robot Hit Streak 15 | . 10 8 . . 8 15 8 10 8 . 5 6 . 3 Robot Miss Streak 9 | . 5 5 . 5 7 2 6 3 9 . . 3 . 2 Penetration Max . | . . . . . . . . . . . . . . . Secondary Targets 8 | . . 1 . . 2 2 . 1 1 . . 1 . . Max Gunslinging Chain 1 | . . 1 . . 1 1 . 1 1 . . 1 . . Shots Hit Robots 332 | . 14 37 . . 87 37 21 79 16 . 19 12 8 2 Core Hits 225 | . 7 16 . 4 50 24 19 71 11 . 5 16 2 . Critical Kills . | . . . . . . . . . . . . . . . Critical Parts Destroyed . | . . . . . . . . . . . . . . . Critical Strikes 7 | . . . . . . 1 . 3 2 . 1 . . . Burn 6 | . . . . . . 1 . 3 2 . . . . . Sever 1 | . . . . . . . . . . . 1 . . . Melee Attacks 117 | . . . . . 20 23 . 12 2 . 36 7 17 . Impact . | . . . . . . . . . . . . . . . Slashing 98 | . . . . . 20 23 . 12 2 . 36 5 . . Piercing 19 | . . . . . . . . . . . . 2 17 . Sneak Attacks 8 | . . . . . 3 . . 2 . . 2 1 . . Combat Hostiles . | . . . . . . . . . . . . . . . Follow-up Attacks . | . . . . . . . . . . . . . . . Damage Inflicted 10956 | . 176 767 . 127 2111 1372 587 3753 522 . 720 350 307 164 Guns 4679 | . 176 491 . . 1171 626 356 1361 344 . . 154 . . Cannons 275 | . . . . . 275 . . . . . . . . . Explosions 4097 | . . 276 . 127 137 746 231 2238 178 . . . . 164 Melee 1905 | . . . . . 528 . . 154 . . 720 196 307 . Ramming . | . . . . . . . . . . . . . . . Kinetic 3413 | . 176 491 . . 848 376 356 769 243 . . 154 . . Thermal 1696 | . . . . . 562 250 . 783 101 . . . . . Explosive 3623 | . . 276 . 90 137 500 231 2047 178 . . . . 164 Electromagnetic 319 | . . . . 37 36 246 . . . . . . . . Impact . | . . . . . . . . . . . . . . . Slashing 1554 | . . . . . 528 . . 154 . . 720 152 . . Piercing 351 | . . . . . . . . . . . . 44 307 . Highest Corruption 19 | . . 1 1 1 . 19 19 1 2 7 7 4 14 14 Average Corruption 9 | . . 1 1 1 . 11 19 1 2 5 2 2 10 14 Corruption Purged 8 | . . . . . . . . . . . 5 3 . . Corruption Blocked . | . . . . . . . . . . . . . . . Effects 124 | . . 1 4 . . 29 51 . . 1 6 11 17 4 Message Errors 36 | . . . 3 . . 10 16 . . . 2 1 3 1 Matter Fused 27 | . . . . . . 5 12 . . . . 5 4 1 Heat Flow Errors 16 | . . . 1 . . 4 7 . . . 1 1 2 . Energy Discharges 20 | . . 1 . . . 4 7 . . . 2 3 3 . Parts Rejected 1 | . . . . . . . . . . 1 . . . . Parts Fused 2 | . . . . . . 1 . . . . 1 . . . Data Loss (minor) 10 | . . . . . . 3 2 . . . . 1 2 2 Data Loss (major) 3 | . . . . . . . 3 . . . . . . . Misfires 1 | . . . . . . . 1 . . . . . . . Alerts 4 | . . . . . . 1 2 . . . . . 1 . Misdirections 2 | . . . . . . . . . . . . . 2 . Weapon Failures 2 | . . . . . . 1 1 . . . . . . . Overload Shots . | . . . . . . . . . . . . . . . Overflow Damage 329 | . . . . . 25 1 . 161 . . 66 7 13 56 Projectiles . | . . . . . . . . . . . . . . . Explosions 218 | . . . . . . 1 . 161 . . . . . 56 Melee 111 | . . . . . 25 . . . . . 66 7 13 . Knockbacks . | . . . . . . . . . . . . . . . Impact . | . . . . . . . . . . . . . . . Kinetic . | . . . . . . . . . . . . . . . Secondary . | . . . . . . . . . . . . . . . Self-Inflicted Damage 148 | . . 25 . 47 . 1 . 30 45 . . . . . Shots 7 | . . 1 . 3 . 1 . 1 1 . . . . . Rammed . | . . . . . . . . . . . . . . . Targets Rammed . | . . . . . . . . . . . . . . . Kicked . | . . . . . . . . . . . . . . . Crushed . | . . . . . . . . . . . . . . . Highest Temperature 458 | . . 93 178 54 458 381 241 179 53 19 235 157 184 . Average Temperature 89 | . . 39 93 27 117 113 94 53 25 9 61 89 90 . Received Heat Transfer 1538 | . 18 183 . . 387 207 27 381 131 . . 126 78 . Effects 12 | . . . . . 10 2 . . . . . . . . Energy Bleed 1 | . . . . . 1 . . . . . . . . . Interference 2 | . . . . . . 2 . . . . . . . . Matter Decay 1 | . . . . . 1 . . . . . . . . . Short Circuit 2 | . . . . . 2 . . . . . . . . . Damage (major) 6 | . . . . . 6 . . . . . . . . . Siege Activations . | . . . . . . . . . . . . . . . Robots Corrupted 1 | . . . . . . 1 . . . . . . . . Combat Hostiles 1 | . . . . . . 1 . . . . . . . . Parts Fried 6 | . . . . . 5 1 . . . . . . . . Impact Corruptions . | . . . . . . . . . . . . . . . Robots Melted 1 | . . . . . . . . 1 . . . . . . Combat Hostiles 1 | . . . . . . . . 1 . . . . . . Parts Melted 3 | . . . . . . 2 . 1 . . . . . . Heat Transferred 3443 | . . . . . 962 518 . 1630 333 . . . . . Parts Sabotaged 2 | . . . . . . . . . 2 . . . . . Parts Stolen . | . . . . . . . . . . . . . . . Parts Stripped . | . . . . . . . . . . . . . . . Power Chain Reactions 1 | . . . . . . 1 . . . . . . . . Alert | -11 -10 -10 -10 -9 -8 -8 -8 -7 -6 -6 -6 -5 -5 -5 ------- Run | Yrd Mat Min Exi Min Mat Gar Mat Fac Fac Was Fac Fac Upp Upp Peak Influence 653 | . 93 297 . 108 407 653 522 617 493 141 181 98 . . Initial 308 | . . 36 . . 41 100 308 92 301 111 84 23 . . Average 240 | . 50 197 . 18 249 417 316 177 403 120 128 33 . . Maximum Alert Level 2 | . . 1 . . 2 2 2 2 2 . . . . . Low Security (%) 41 | 100 100 31 . 100 10 14 1 74 . 100 100 100 . . Level 1 40 | . . 68 . . 87 24 84 9 41 . . . . . Level 2 18 | . . . . . 1 60 13 15 58 . . . . . Level 3 . | . . . . . . . . . . . . . . . Level 4 . | . . . . . . . . . . . . . . . Level 5 . | . . . . . . . . . . . . . . . High Security . | . . . . . . . . . . . . . . . Max Security . | . . . . . . . . . . . . . . . Squads Dispatched 31 | . 1 1 . . 2 . 8 7 5 . 6 1 . . Investigation 15 | . 1 1 . . 2 . . 3 2 . 5 1 . . Extermination 3 | . . . . . . . . 2 1 . . . . . Reinforcement 8 | . . . . . . . 5 2 . . 1 . . . Assault 2 | . . . . . . . . . 2 . . . . . Garrison 3 | . . . . . . . 3 . . . . . . . Intercept . | . . . . . . . . . . . . . . . Searches Triggered . | . . . . . . . . . . . . . . . Construction Impeded 1 | . . . . . . . 1 . . . . . . . Haulers Reinforced 2 | . . . . . . . . 2 . . . . . . Active Scanning Responses . | . . . . . . . . . . . . . . . Cargo Convoy Interrupts . | . . . . . . . . . . . . . . . Stealth | -11 -10 -10 -10 -9 -8 -8 -8 -7 -6 -6 -6 -5 -5 -5 --------- Run | Yrd Mat Min Exi Min Mat Gar Mat Fac Fac Was Fac Fac Upp Upp Distress Signals 7 | . . . . . 2 . 5 . . . . . . . Communications Jammed 1 | . . . . . . . . 1 . . . . . . Distress Signals 1 | . . . . . . . . 1 . . . . . . Times Spotted 164 | . 3 13 . 3 32 14 7 29 28 6 6 10 10 3 Peak Tracking Total 17 | . 2 3 . 4 6 7 2 6 17 6 2 4 7 3 Tactical Retreats 16 | . . 1 . 1 . 1 . 4 2 . . 2 5 . Traps | -11 -10 -10 -10 -9 -8 -8 -8 -7 -6 -6 -6 -5 -5 -5 ------- Run | Yrd Mat Min Exi Min Mat Gar Mat Fac Fac Was Fac Fac Upp Upp Traps Triggered 9 | . . 2 . . . 4 . . 1 . 1 1 . . Indirectly . | . . . . . . . . . . . . . . . Trap Hack Attempts . | . . . . . . . . . . . . . . . Triggered . | . . . . . . . . . . . . . . . Disarmed . | . . . . . . . . . . . . . . . Reprogrammed . | . . . . . . . . . . . . . . . Reused 1 | . . . . . 1 . . . . . . . . . Traps Reconfigurated 10 | . . . . . 4 4 . 2 . . . . . . Traps Extracted . | . . . . . . . . . . . . . . . Installed . | . . . . . . . . . . . . . . . Triggered 2 | . . . . . 1 . . . . . . . . 1 Machines | -11 -10 -10 -10 -9 -8 -8 -8 -7 -6 -6 -6 -5 -5 -5 ---------- Run | Yrd Mat Min Exi Min Mat Gar Mat Fac Fac Was Fac Fac Upp Upp Machines Disabled 21 | . . . . . 1 4 1 13 . . . . 2 . Max in Single Turn 6 | . . . . . 1 1 1 6 . . . . 1 . Garrison Access 1 | . . . . . . . . . 1 . . . . . Garrison Relay 3 | . . . . . . 3 . . . . . . . . Machines Repaired . | . . . . . . . . . . . . . . . Machines Dismantled . | . . . . . . . . . . . . . . . Machines Sabotaged . | . . . . . . . . . . . . . . . Overloaded Fab Kills . | . . . . . . . . . . . . . . . Hacking | -11 -10 -10 -10 -9 -8 -8 -8 -7 -6 -6 -6 -5 -5 -5 --------- Run | Yrd Mat Min Exi Min Mat Gar Mat Fac Fac Was Fac Fac Upp Upp Machines Accessed 46 | . 4 2 1 . 8 . 7 5 4 . 11 3 1 . Terminals 26 | . 4 . . . 5 . 5 3 1 . 6 2 . . Fabricators 7 | . . . . . . . . 2 1 . 3 1 . . Repair Stations . | . . . . . . . . . . . . . . . Recycling Units 6 | . . . . . 2 . 1 . 1 . 2 . . . Scanalyzers 1 | . . . . . . . 1 . . . . . . . Garrison Access 2 | . . . . . 1 . . . 1 . . . . . Total Hacks 124 | . 17 2 1 . 24 . 20 14 9 . 28 8 1 . Successful 51 | . 6 2 1 . 12 . 9 3 5 . 8 4 1 . Failed 72 | . 10 . . . 12 . 11 11 4 . 20 4 . . Catastrophic 18 | . . . . . 1 . 2 4 2 . 6 3 . . Database Lockouts 1 | . 1 . . . . . . . . . . . . . Manual 57 | . 10 . 1 . 12 . 12 2 4 . 10 5 1 . Terminals 71 | . 17 . . . 15 . 11 7 2 . 14 5 . . Fabricators 20 | . . . . . . . . 7 2 . 8 3 . . Repair Stations . | . . . . . . . . . . . . . . . Recycling Units 16 | . . . . . 6 . 2 . 2 . 6 . . . Scanalyzers 7 | . . . . . . . 7 . . . . . . . Garrison Access 6 | . . . . . 3 . . . 3 . . . . . Terminal Hacks 20 | . 5 2 1 . 6 . 1 1 . . 2 1 1 . Record 1 | . . . . . . . . . . . 1 . . . Robot Analysis 1 | . 1 . . . . . . . . . . . . . Prototype ID Bank 1 | . . . . . 1 . . . . . . . . . Open Door 3 | . . 2 . . . . . . . . . . 1 . Branch Access Points 2 | . 1 . . . . . . . . . . 1 . . Recycling Unit Index 1 | . . . . . 1 . . . . . . . . . Alert Level 1 | . . . . . 1 . . . . . . . . . Unreport Threat 1 | . . . . . . . . 1 . . . . . . Recall Investigation 1 | . . . . . 1 . . . . . . . . . Hauler Manifests 2 | . . . . . 1 . 1 . . . . . . . Registered Components 1 | . 1 . . . . . . . . . . . . . Zone Layout 4 | . 2 . . . 1 . . . . . 1 . . . Derelict Proto ID Bank 1 | . . . 1 . . . . . . . . . . . Fabricator Hacks 5 | . . . . . . . . 1 2 . 1 1 . . Load Schematic 4 | . . . . . . . . 1 1 . 1 1 . . Build 1 | . . . . . . . . . 1 . . . . . Repair Station Hacks . | . . . . . . . . . . . . . . . Recycling Unit Hacks 6 | . . . . . 2 . 1 . . . 3 . . . Report Inventory 3 | . . . . . . . 1 . . . 2 . . . Retrieve Components 3 | . . . . . 2 . . . . . 1 . . . Scanalyzer 6 | . . . . . . . 6 . . . . . . . Insert Component 2 | . . . . . . . 2 . . . . . . . Analyze 4 | . . . . . . . 4 . . . . . . . Garrison Access Hacks 3 | . . . . . 1 . . . 2 . . . . . Unlock Access 1 | . . . . . 1 . . . . . . . . . Seal Access 1 | . . . . . . . . . 1 . . . . . Coupler Status 1 | . . . . . . . . . 1 . . . . . Unauthorized Hacks 11 | . 1 . . . 3 . 1 1 1 . 2 2 . . Terminals 5 | . 1 . . . 1 . . 1 . . . 2 . . Botnet 5 | . 1 . . . 1 . . 1 . . . 2 . . Fabricators . | . . . . . . . . . . . . . . . Repair Stations . | . . . . . . . . . . . . . . . Recycling Units 5 | . . . . . 1 . 1 . 1 . 2 . . . Reject 5 | . . . . . 1 . 1 . 1 . 2 . . . Scanalyzers . | . . . . . . . . . . . . . . . Garrison Access 1 | . . . . . 1 . . . . . . . . . Reprogram 1 | . . . . . 1 . . . . . . . . . Data Cores Recovered 1 | . . . . . 1 . . . . . . . . . Used 1 | . . . . . 1 . . . . . . . . . Hacking Detections 41 | . 4 . . . 7 . 7 5 4 . 11 3 . . Full Trace Events 17 | . 1 . . . 3 . 3 3 2 . 4 1 . . Feedback Events . | . . . . . . . . . . . . . . . Feedback Blocked . | . . . . . . . . . . . . . . . Robot Schematics Acquired . | . . . . . . . . . . . . . . . Robots Built . | . . . . . . . . . . . . . . . Authchips . | . . . . . . . . . . . . . . . Time . | . . . . . . . . . . . . . . . Total Robot Build Rating . | . . . . . . . . . . . . . . . Part Schematics Acquired 2 | . . . . . . . 2 . . . . . . . Parts Built . | . . . . . . . . . . . . . . . Authchips . | . . . . . . . . . . . . . . . Time 116 | . . . . . . . . . 116 . . . . . Total Part Build Rating . | . . . . . . . . . . . . . . . Parts Repaired . | . . . . . . . . . . . . . . . Time . | . . . . . . . . . . . . . . . Parts Recycled . | . . . . . . . . . . . . . . . Recycled Matter . | . . . . . . . . . . . . . . . Retrieved Matter . | . . . . . . . . . . . . . . . Retrieved Components 21 | . . . . . 19 . . . . . 2 . . . Parts Scanalyzed 2 | . . . . . . . 2 . . . . . . . Part Schematics Acquired 2 | . . . . . . . 2 . . . . . . . Parts Damaged . | . . . . . . . . . . . . . . . Bothacking | -11 -10 -10 -10 -9 -8 -8 -8 -7 -6 -6 -6 -5 -5 -5 ------------ Run | Yrd Mat Min Exi Min Mat Gar Mat Fac Fac Was Fac Fac Upp Upp Used RIF Installer 2 | . . . . . . 2 . . . . . . . . Zone Cloak 1 | . . . . . . 1 . . . . . . . . Robots Hacked 1 | . . . . . . . . . . . 1 . . . Non-combat . | . . . . . . . . . . . . . . . Combat 1 | . . . . . . . . . . . 1 . . . Robot Hacks Applied 1 | . . . . . . . . . . . 1 . . . formatsys_high 1 | . . . . . . . . . . . 1 . . . Relay Couplers Released 12 | . . . . . . 12 . . . . . . . . Machine Destruction 12 | . . . . . . 12 . . . . . . . . Attached 1 | . . . . . . . . . . . 1 . . . Fabnet Peak Effective % . | . . . . . . . . . . . . . . . Robots Rewired . | . . . . . . . . . . . . . . . Allies Hacked . | . . . . . . . . . . . . . . . Hacks Repelled . | . . . . . . . . . . . . . . . Allies | -11 -10 -10 -10 -9 -8 -8 -8 -7 -6 -6 -6 -5 -5 -5 -------- Run | Yrd Mat Min Exi Min Mat Gar Mat Fac Fac Was Fac Fac Upp Upp Total Allies 2 | . . . . . . . . . . 1 1 . . . Largest Group 1 | . . . . . . . . . . 1 1 1 . . Highest-Rated Group 32 | . . . . . . . . . . 31 32 32 . . Highest-Rated Ally 32 | . . . . . . . . . . 31 32 32 . . Total Orders 5 | . . . . . . . . . . . 4 1 . . FOLLOW 1 | . . . . . . . . . . . 1 . . . EXPLORE 3 | . . . . . . . . . . . 2 1 . . RETURN 1 | . . . . . . . . . . . 1 . . . Ally Attacks 8 | . . . . . . . . . . 6 2 . . . Total Damage 208 | . . . . . . . . . . 104 104 . . . Kills 1 | . . . . . . . . . . . 1 . . . Allies Corrupted . | . . . . . . . . . . . . . . . Allies Melted . | . . . . . . . . . . . . . . . Intel | -11 -10 -10 -10 -9 -8 -8 -8 -7 -6 -6 -6 -5 -5 -5 ------- Run | Yrd Mat Min Exi Min Mat Gar Mat Fac Fac Was Fac Fac Upp Upp Robot Analysis Total 1 | . 1 . . . . . . . . . . . . . Derelict Logs Recovered 3 | . . 1 . . . . . . . . . . 2 . Drone Launches 4 | . . . . . . . . . . . 3 1 . . Drone Recoveries 2 | . . . . . . . . . . . 2 . . . Exploration | -11 -10 -10 -10 -9 -8 -8 -8 -7 -6 -6 -6 -5 -5 -5 ------------- Run | Yrd Mat Min Exi Min Mat Gar Mat Fac Fac Was Fac Fac Upp Upp Turns Passed 8030 | 38 127 416 220 136 1246 1105 1110 1566 455 51 445 632 403 80 Spaces Moved 5750 | 32 93 248 238 127 709 606 666 890 273 130 484 414 709 131 Core 756 | 1 . . . . . . . . . . . . 624 131 Treads . | . . . . . . . . . . . . . . . Legs . | . . . . . . . . . . . . . . . Wheels 3881 | 31 93 248 238 127 709 606 666 890 273 . . . . . Hover . | . . . . . . . . . . . . . . . Flight 1113 | . . . . . . . . . . 130 484 414 85 . Fastest Speed 23 | 50 90 90 90 90 90 116 116 115 110 23 23 30 40 50 Average Speed 98 | 89 90 102 90 92 125 131 134 120 121 23 55 67 49 53 Slowest Speed 280 | 100 90 105 90 105 155 215 230 138 125 23 107 280 100 100 Overloaded Moves . | . . . . . . . . . . . . . . . Propulsion Burnouts . | . . . . . . . . . . . . . . . Robots Hopped . | . . . . . . . . . . . . . . . Cave-ins Triggered 1 | . . . . . . 1 . . . . . . . . Exploration Rate (%) 37 | 3 29 56 61 35 52 53 52 17 6 83 17 16 72 17 Regions Visited 14 Branch Regions 5 Pre-discovered Areas . | . . . . . . . . . . . . . . . Known Exits Taken 4 | . 1 . . . 1 . . . . . . 1 1 . Unknown Exits Taken 7 | 1 . 1 1 1 . . 1 1 . . 1 . . . Scrap Searched 5 | . . . . 1 . . . . . . . . 4 . Spaces Dug 66 | . . . . . 5 21 . 23 2 . 12 3 . . Terrain Destroyed 449 | . . 28 . 41 23 107 31 103 50 . 12 3 . 51 Melee 35 | . . . . . 5 3 . 10 2 . 12 3 . . Projectile 10 | . . . . . 6 . 1 . 3 . . . . . AOE 404 | . . 28 . 41 12 104 30 93 45 . . . . 51 Terrain Rammed . | . . . . . . . . . . . . . . . Walls Destroyed . | . . . . . . . . . . . . . . . Machines Disabled . | . . . . . . . . . . . . . . . Actions | -11 -10 -10 -10 -9 -8 -8 -8 -7 -6 -6 -6 -5 -5 -5 --------- Run | Yrd Mat Min Exi Min Mat Gar Mat Fac Fac Was Fac Fac Upp Upp Total 7460 | 38 112 346 246 138 924 813 853 1258 365 153 599 742 737 136 Wait 888 | . 4 29 1 6 29 75 126 251 51 . 39 277 . . Move 5738 | 31 92 247 237 126 709 605 665 889 273 129 483 413 708 131 Hop . | . . . . . . . . . . . . . . . Pick Up 72 | 1 2 8 2 . 27 7 7 6 3 1 5 1 2 . Fast Attach 69 | 6 1 4 . 1 14 . 7 5 4 1 8 16 2 . Attach 54 | . . 3 1 1 4 6 5 4 . 10 12 3 4 1 Detach 34 | . . 1 2 . 7 . 4 1 . 1 11 6 1 . Swap 74 | . . 6 . 1 16 21 6 15 5 2 . 2 . . Drop 86 | . 1 3 3 . 25 4 10 9 6 9 4 10 2 . Fire 303 | . 12 45 . 3 73 48 23 66 21 . 1 7 . 4 Melee 117 | . . . . . 20 23 . 12 2 . 36 7 17 . Ram 1 | . . . . . . . . . . . . . 1 . Kick . | . . . . . . . . . . . . . . . Crush . | . . . . . . . . . . . . . . . Escape Stasis 24 | . . . . . . 24 . . . . . . . . Rewire . | . . . . . . . . . . . . . . . Trap . | . . . . . . . . . . . . . . . Miscellaneous . | . . . . . . . . . . . . . . . Route ------- -11/Scrapyard -10/Materials (discovered 2 exits: *Min x2) -10/Mines (discovered 2 exits: [*Mat] / *Exi) -10/Exiles -9/Mines -8/Materials (discovered 2 exits: *Fac / Gar) -8/Garrison -8/Materials -7/Factory -6/Factory -6/Waste -6/Factory (discovered 3 exits: *Fac / [Low x2]) -5/Factory (discovered 3 exits: [*Fac] / *Upp x2) -5/Upper Caves -5/Upper Caves (discovered 1 exit: [*Fac]) History --------- Turn | Location | Event 18 | -11/Scrapyard | Discovered new exit (range 15) 39 | -11/Scrapyard | Entered Materials 49 | -10/Materials | Central database locked down 62 | -10/Materials | Identified exit to Mines 166 | -10/Materials | Entered Mines 171 | -10/Mines | Met a Derelict who couldn't figure out how to use a Trap Extractor 311 | -10/Mines | Build established: Mutant 410 | -10/Mines | Met a Derelict shopkeep closing up shop 480 | -10/Mines | Learned Materials stockpile data 497 | -10/Mines | Discovered new exit (range 7) 577 | -10/Mines | Deemed a non-threat by the Exiles lab entrance 578 | -10/Mines | Discovered new exit (range 5) 582 | -10/Mines | Entered Exiles 605 | -10/Exiles | Met 8R-AWN 622 | -10/Exiles | Met EX-HEX 649 | -10/Exiles | Met EX-BIN 659 | -10/Exiles | Aligned with FarCom system 660 | -10/Exiles | Given EX-Vault access code 680 | -10/Exiles | Opened EX-Vault 689 | -10/Exiles | Found Trap Reconfigurator 711 | -10/Exiles | Warned to stay clear of 0b10 Research branches 720 | -10/Exiles | Exiles lab attacked by MAIN.C 794 | -10/Exiles | Discovered new exit (range 10) 802 | -10/Exiles | Left Exiles lab with Trap Reconfigurator 802 | -10/Exiles | Entered Mines 869 | -9/Mines | Assembled infested the area 874 | -9/Mines | Assisted by a Guerilla fighting off Assembled 908 | -9/Mines | Discovered new exit (range 15) 938 | -9/Mines | Entered Materials 938 | -8/Materials | Evolved 4 slots: Propulsion x1, Utility x3 1232 | -8/Materials | Discovered new exit (range 20) 1633 | -8/Materials | Build established: Scavenger-Mutant 2184 | -8/Materials | Identified exit to Garrison 2184 | -8/Materials | Entered Garrison 2345 | -8/Garrison | Triggered checkpoint 2534 | -8/Garrison | Lost 3 parts (1n2u) 2535 | -8/Garrison | Garrison Relay disabled 2620 | -8/Garrison | Garrison Relay disabled 2786 | -8/Garrison | Triggered checkpoint 2844 | -8/Garrison | Installed Relay Interface Framework 2888 | -8/Garrison | Triggered checkpoint 2940 | -8/Garrison | Discovered new exit (range 10) 2954 | -8/Garrison | Crushed by falling debris 2954 | -8/Garrison | Core integrity fell below 50% 2954 | -8/Garrison | System corruption reached 10% 2985 | -8/Garrison | Lost 4 parts (1p1n1u1w) 3170 | -8/Garrison | Expanded RIF knowledge: Zone Cloak 3289 | -8/Garrison | Entered Materials 3573 | -8/Materials | Garrison activated, responded to threat 4289 | -8/Materials | Discovered new exit (range 7) 4399 | -8/Materials | Entered Factory 4399 | -7/Factory | Evolved 2 slots: Propulsion x1, Utility x1 5014 | -7/Factory | Discovered new exit (range 3) 5965 | -7/Factory | Entered another Factory area 5965 | -6/Factory | Evolved 2 slots: Propulsion x1, Utility x1 6140 | -6/Factory | Discovered new exit (range 5) 6315 | -6/Factory | First assault squad dispatched 6420 | -6/Factory | Sucked down chute 6420 | -6/Factory | Entered Waste 6421 | -6/Waste | Met a frightened Derelict 6435 | -6/Waste | EMP discharged 6441 | -6/Waste | Spotted C-40 Crusher 6443 | -6/Waste | Spotted C-40 Crusher 6443 | -6/Waste | Spotted C-40 Crusher 6445 | -6/Waste | Spotted C-40 Crusher 6445 | -6/Waste | Spotted C-40 Crusher 6451 | -6/Waste | Spotted C-40 Crusher 6466 | -6/Waste | Discovered new exit (range 16) 6471 | -6/Waste | Entered Factory 6671 | -6/Factory | Lost 8 parts (1p4n3u) 6806 | -6/Factory | Discovered new exit (range 10) 6806 | -6/Factory | Discovered new exit (range 16) 6876 | -6/Factory | Discovered new exit (range 7) 6916 | -6/Factory | Entered another Factory area 6916 | -5/Factory | Accompanied by 1 ally 6916 | -5/Factory | Evolved 2 slots: Power x1, Propulsion x1 6978 | -5/Factory | Build established: Mutant 7443 | -5/Factory | Identified exit to Upper Caves 7460 | -5/Factory | Lost 4 parts (1n2u1w) 7528 | -5/Factory | Discovered new exit (range 15) 7548 | -5/Factory | Entered Upper Caves 7612 | -5/Upper Caves | System corruption reached 10% 7650 | -5/Upper Caves | Core integrity fell below 50% 7656 | -5/Upper Caves | Lost 6 parts (1n4u1w) 7743 | -5/Upper Caves | Learned Factory emergency access door positions 7750 | -5/Upper Caves | Acquired the password to a Derelict Tinkerer's latest research 7753 | -5/Upper Caves | Found Prototype Special Weapon 7753 | -5/Upper Caves | Identified Molecular Deconstructor 7802 | -5/Upper Caves | Caught by Unaware searching for contraband prototypes 7810 | -5/Upper Caves | Attacked by a delusional Derelict stockpiling Unaware 7875 | -5/Upper Caves | P-70 Sage assimilated allied O3-39D(S) 7887 | -5/Upper Caves | Caught by Unaware searching for contraband prototypes 7931 | -5/Upper Caves | Core integrity fell below 20% 7934 | -5/Upper Caves | Identified exit to Upper Caves 7951 | -5/Upper Caves | Entered another Upper Caves area 7973 | -5/Upper Caves | Discovered new exit (range 9) 8029 | -5/Upper Caves | Attracted the attention of an 0b10 checkpoint 8031 | -5/Upper Caves | Destroyed by H-66 Slayer with Gauss Rifle Last Messages --------------- Sealed Heavy Doors opened. 07934_ Acquired derelict log, extracted data. 07942_ System corrupted: Component data lost. LOCATION=UPPER CAVES GOAL=ESCAPE 07966_ System corrupted: Component data lost. 07973_ EXIT=FOUND 07985_ System corrupted: Matter fused (-6). 08001_ L,AQ9KVNU>:T4AWP >,4 08019_ Penetrated by Slug. 08021_ Destroyed VTOL Module. 08021_ S-27 Virus destroyed. 08022_ System corrupted: Component data lost. 08025_ Slug penetrates Wall. 08025_ Relay Coupler [Sentry] destroyed. 08028_ Penetrated by Slug. 08028_ Missile Launcher destroyed. 08029_ Y-64 Sentinel: "INTERCEPTING UNREGISTERED DERELICT." 08031_ Penetrated by Slug. Map ----- +----------------------------------------------------+ | ?????????????????????????????????????????????????? | | ??????????????????????????##?????????????????????? | | ??????????????????????????# ?????????????????????? | | ??????????????????????????# ????????????????????? | | ??????????????????????????? #####????????????? ?? | | ????????????????????????????# # ##?????????? " ?# | | ?#####????????????????????#### # #????????? "" ? | | ## #????????????????????# # # #???????? ??? | | #????????????????????# #?????? ## | | #???????????????????## ##????? < | | ##??????????????????# ###### | | #????###????#####??# #?? | | #??### ###### #### #??? | | ## ##?# ### ##??? | | #### ### ##?? ######???? | | #??## ## ### #???? #????????? | | #??### #####?# ##???? ???????? | | #???## #?????# ##?????? ??????? | | ???# #?????## ##???????## ?????? | | ??# #??????## ##??????????# ????? | | #?# #???????# #???????????? ???? | | #?# #????#### ????????????? ??? | | #?# ##????# ????????????? ?? | | ####### ???????????? ?? | | ## ## ####"" ???????????#???? | | ## ## @###" " ??????????????? | | ## ####### "" " ??????????????? | | # #?????# """"" #?????????????? | | # ????# """"""??#?????????????? | | #???? ## # ### """"""????????????????? | | ?????? ?? # % """ " ????????????????? | | ?????????????# ### """ ????????????????? | | ????????? ??????# """"""????????????????? | | ????????# ??????????# ""#??????????????????? | | ??????????????????????# "##??????????????????? | | ??????????????????????# h ??????????????????? | | ?????????????????????? ????????????????? | | ?????????????????????? ####????????????????? | | ?????????????????????? ???????????????????? | | ????????????????????? #??????????????????? | | ????????????????????? #??????????????????? | | ????????????????????? # #??????????????????? | | ?????????????????????##?#######??????????????????? | | ?????????????????????????????????????????????????? | | ?????????????????????????????????????????????????? | | ?????????????????????????????????????????????????? | | ?????????????????????????????????????????????????? | | ?????????????????????????????????????????????????? | | ?????????????????????????????????????????????????? | | ?????????????????????????????????????????????????? | +----------------------------------------------------+ Best States ------------- Heat Dissipation 56 Energy Generation 18 Energy Capacity 290 Matter Stores 300 Matter Capacity 300 Sight Range 16 Terrain Scan Density 10 Jamming Range 14 Armor Coverage 825 Resistance: KI 30 Resistance: TH 10 Propulsion Shielding 66 Phase Shifting 5 Evasion (%) 65 Targeting Accuracy 16 Core Analysis 6 Offensive Hacking 10 Relay Coupler Types 1 Relay Coupler Value 19 Authchip Count 1 Item Schematics ----------------- Imp. VTOL Module | -8/Materials | Scanalyzed Imp. Propulsion Shielding | -8/Materials | Scanalyzed Robot Schematics ------------------ None Fabricated ------------ Nothing Alien Tech Used ----------------- None Achievements -------------- Assimilation Complete Challenges ------------ None Game ------ Seed PointyPulseClaymores Manual? 0 Play Time 02:31:31 Cumulative 31.7 hours Start 2024.05.04 @ 23:05:10 End 2024.05.06 @ 14:10:11 Sessions 7 Manual Loads 0 Difficulty Rogue Special Mode None Game No. 22 Rogue 22 Adventurer 0 Explorer 0 Win Type - Total 0 Types 0/0/0/0/0/0/0/0/0 Lore% 23 Gallery% 34 Achievement% 28 Wizard Run 0 Options --------- Layout 1 ASCII 0 Keyboard 0 Movement Mouse Keybinds 0 Fullscreen 1 Font 32/SmallcapsGlow Map View 50x35 Zoom Use 0% Tactical HUD 1 Map Filters NONE Filters NONE Steam 1 RUN: 352d3bf4-68ce-4dbb-ad7b-dc4fb4b4fe34